Body,Body Name,Date,Transaction Number,Amount,Supplier Name,Supplier ID,Expense Area,Expense Type,Expense Code,Extended Description,Service Code,Service Label,Service Division Label,Service Division Code
http://statistics.data.gov.uk/id/local-authority/16UF,Eden District Council,11/11/2016,153660,20000,CUMBRIA COUNTY COUNCIL,CCC002,Commercial Services Manager,Tour of Britain,2244,CONTRIBUTION TOUR OF BRITAIN 2016,COMDEV,Community Development & Engagement,01053,Community Development
http://statistics.data.gov.uk/id/local-authority/16UF,Eden District Council,11/11/2016,153699,500,CUMBERLAND AND WESTMORLAND HERALD,CUM001,Technical Services Manager,Advertising,2086,WINTER DROVING ROAD CLOSURE,PROAME,Provision of Ameneties,02252,Provision of Amenities
http://statistics.data.gov.uk/id/local-authority/16UF,Eden District Council,11/11/2016,153706,550,TESGL LTD,NOB001,Technical Services Manager,Mechanical & electrical maintenance,1014,TOWN HALL / MANSION HSE MAINTENANCE,ADMBLD,Administrative Buildings,00500,Town Hall
http://statistics.data.gov.uk/id/local-authority/16UF,Eden District Council,11/11/2016,153318,750,CHRIS WAKEFIELD TREE SVCS,CHR001,Technical Services Manager,GM External Contractors,1080,COLD SPRINGS,PARKOS,Parks and Open Spaces,02127,Dangerous trees
http://statistics.data.gov.uk/id/local-authority/16UF,Eden District Council,11/11/2016,153446,600.49,QUATTRO PRODUCTS LTD,QUA002,Technical Services Manager,Replacement Works (Play Areas),2195,PLAY AREA CROFT CLOSE BROUGH,PARKOS,Parks and Open Spaces,02143,Play Areas
http://statistics.data.gov.uk/id/local-authority/16UF,Eden District Council,11/11/2016,153653,2250,FLORENCE MADDEN ASSOCIATES,FLO004,Human Resources Manager,Training Expenses,0060,TRAINING SERVICES,STADEV,Staff Development,00224,Staff Training DoF
http://statistics.data.gov.uk/id/local-authority/16UF,Eden District Council,11/11/2016,152957,1660,CUMBRIA COUNTY COUNCIL,CCC002,Financial Services Manager,Miscellaneous,2092,COMMONS SEARCHES APR/MAY/JUN,LANDMA,Land Management,01095,Miscellaneous
http://statistics.data.gov.uk/id/local-authority/16UF,Eden District Council,11/11/2016,153553,4035,REDACTED INFORMATION,BEC003,Director of Finance,Grants and contributions,2079,PLFRGRANT EDC 16074,FLOOD,Flood Dec 2015,09318,Flood Dec 2015
http://statistics.data.gov.uk/id/local-authority/16UF,Eden District Council,11/11/2016,153560,-1660,CUMBRIA COUNTY COUNCIL,CCC002,Financial Services Manager,Miscellaneous,2092,CREDIT INV 0283391,LANDMA,Land Management,01095,Miscellaneous
http://statistics.data.gov.uk/id/local-authority/16UF,Eden District Council,11/11/2016,153589,728,ALSTON TOWN HALL TRUSTEES,ALS003,Technical Services Manager,Alston Info Centre Cleaning to Recharge,1062,CLEANING/MAINT SERVICE 03.06.16-26.08.16,COMDEV,Community Development & Engagement,02064,Alston Council Centre - Building
http://statistics.data.gov.uk/id/local-authority/16UF,Eden District Council,11/11/2016,153654,553,DENISE CALVERT LTD,CAL019,Revenue/Benefits Manager,Agency Staff,0003,W/E 28.10.16,REVBEN,Revenue & Benefits,00106,Revenues
http://statistics.data.gov.uk/id/local-authority/16UF,Eden District Council,11/11/2016,153671,900,ALSTON TOWN HALL TRUSTEES,ALS003,Technical Services Manager,Rent,1028,RENT FOR JUL/AUG/SEPT 2016,COMDEV,Community Development & Engagement,02064,Alston Council Centre - Building
http://statistics.data.gov.uk/id/local-authority/16UF,Eden District Council,11/11/2016,153687,9225.9,ARLINGCLOSE LTD,ARL002,Financial Services Manager,Professional fees,2045,TREASURY ADVICE SERVICE 01.11.16-31.10.17,TREASU,Treasury Management,01096,Treasury Management
http://statistics.data.gov.uk/id/local-authority/16UF,Eden District Council,11/11/2016,153697,710.1,CFH DOCMAIL LTD,CFH001,Revenue/Benefits Manager,Printing and stationary,2037,VOA POSTAGE CHARGES OCTOBER 2016,REVBEN,Revenue & Benefits,00106,Revenues
http://statistics.data.gov.uk/id/local-authority/16UF,Eden District Council,11/11/2016,152771,1344.25,EDEN ARTS TRUST,EDE013,Commercial Services Manager,Balance Sheet entry BS,6003,ECF117 FINAL PAYMENT,COMMF,Community Fund,10400,Community Fund
http://statistics.data.gov.uk/id/local-authority/16UF,Eden District Council,11/11/2016,153130,636.99,NORTH COUNTRY LEISURE,NCL001,Technical Services Manager,NCL Ad-hoc Sports Pitches,1155,AD HOC BOOKINGS SEPT 16,LEICEN,Eden Leisure Centre & Appleby Swimming P,02130,Sports Facilities
http://statistics.data.gov.uk/id/local-authority/16UF,Eden District Council,11/11/2016,153552,4366.56,REDACTED INFORMATION,MOO009,Director of Finance,Grants and contributions,2079,PLFRGRANT EDC 16037,FLOOD,Flood Dec 2015,09318,Flood Dec 2015
http://statistics.data.gov.uk/id/local-authority/16UF,Eden District Council,11/11/2016,153554,1416,REDACTED INFORMATION,KIR047,Director of Finance,Grants and contributions,2079,PLFRGRANT EDC 16149,FLOOD,Flood Dec 2015,09318,Flood Dec 2015
http://statistics.data.gov.uk/id/local-authority/16UF,Eden District Council,11/11/2016,153558,5000,REDACTED INFORMATION,MIL034,Director of Finance,Grants and contributions,2079,EDC16229,FLOOD,Flood Dec 2015,09318,Flood Dec 2015
http://statistics.data.gov.uk/id/local-authority/16UF,Eden District Council,11/11/2016,153587,2000,NEOPOST LIMITED,NEO001,Corporate Services Manager,Postages,2054,FRANKING REFILL,CENTRA,Central Expenses,00205,Postages Town Hall
http://statistics.data.gov.uk/id/local-authority/16UF,Eden District Council,11/11/2016,153593,1531.69,HEATONS OFFICE SOLUTIONS LTD,LAK004,Commercial Services Manager,Advertising,2086,FURNITURE/STATIONERY/PAPER,TOUPRO,Tourism Promotion,02056,Eden Tourism
http://statistics.data.gov.uk/id/local-authority/16UF,Eden District Council,11/11/2016,153670,9710.62,NORTH COUNTRY LEISURE,NCL001,Financial Services Manager,Balance Sheet entry BS,6003,VALUATION SEPTEMBER 2016,GFCAP,GF Capital Receipts,10181,GF Capital Receipts
http://statistics.data.gov.uk/id/local-authority/16UF,Eden District Council,11/11/2016,153677,552.5,FLORENCE MADDEN ASSOCIATES,FLO004,Human Resources Manager,Training Expenses,0060,COACHING DIPLOMA,STADEV,Staff Development,00223,Staff Training DoG
http://statistics.data.gov.uk/id/local-authority/16UF,Eden District Council,11/11/2016,153682,3950,DOLPHIN MOBILITY YORKSHIRE & CUMBRIA LTD,DOL001,Environmental Services,Capital grants,5505,FINAL PAYMENT  ALSTON,MEREGR,1996 Mandatory Renovation Grants,06035,Disabled Facility Grants
http://statistics.data.gov.uk/id/local-authority/16UF,Eden District Council,11/11/2016,153689,745.84,NPS NORTH WEST LTD,NPS001,Environmental Services,Grants and contributions,2079,PROFESSIONAL SERVICES,OHOUSG,Housing Delivery,02383,Affordable Housing Fund Revenue
http://statistics.data.gov.uk/id/local-authority/16UF,Eden District Council,11/11/2016,153310,13000,SOUTH LAKELAND DISTRICT COUNCIL,SOU006,Director of Finance,Equipment � purchase,2000,DIGITAL IMPLEMENTATION COSTS,DIGINV,Delivering Digital Innovation Project,06632,Delivering Digital Innovation Project
http://statistics.data.gov.uk/id/local-authority/16UF,Eden District Council,11/11/2016,153527,2000,SOUTH LAKELAND DISTRICT COUNCIL,SOU006,Director of Finance,Equipment � purchase,2000,DIGITAL IMPLEMENTATION COSTS 50% LINE INST,DIGINV,Delivering Digital Innovation Project,06632,Delivering Digital Innovation Project
http://statistics.data.gov.uk/id/local-authority/16UF,Eden District Council,11/11/2016,153542,1000.1,ROYAL MAIL NW,ROY001,Revenue/Benefits Manager,Postages,2054,POSTAGE 28/9 - 18/10/16,REVBEN,Revenue & Benefits,00106,Revenues
http://statistics.data.gov.uk/id/local-authority/16UF,Eden District Council,11/11/2016,153674,3960,M TAYLOR ASSOCIATES LTD,TAY017,Human Resources Manager,Professional fees,2045,HR SUPPORT OCTOBER 2016,HUMRES,Human Resources,00207,Human Resources
http://statistics.data.gov.uk/id/local-authority/16UF,Eden District Council,11/11/2016,153675,970,REDACTIVE PUBLISHING LIMITED,RED006,Human Resources Manager,Advertising,0050,THE PLANNER ONLINE,CENTRA,Central Expenses,00208,Staff Recruitment
http://statistics.data.gov.uk/id/local-authority/16UF,Eden District Council,11/11/2016,153694,10767.3,WSP UK LTD,WSP001,Environmental Services,Professional fees,2045,EDEN HEAT NETWORK FEASIBILITY PHASE 2 PART 2,POLCNL,Pollution Control,03090,Heat Network Funding
http://statistics.data.gov.uk/id/local-authority/16UF,Eden District Council,18/11/2016,153790,1018,AMEY PLC,TFE001,Technical Services Manager,FL Day Works,3301,QUOTED WORKS,FOOLIG,Footway Lighting,02258,Footway lighting
http://statistics.data.gov.uk/id/local-authority/16UF,Eden District Council,18/11/2016,153791,560.32,AMEY PLC,TFE001,Technical Services Manager,Planned Maintenance,1016,REPLACE MANHOLE COVER & FRAME,PUBCON,Public Conveniences,02280,Appleby Boroughgate Public Convenience
http://statistics.data.gov.uk/id/local-authority/16UF,Eden District Council,18/11/2016,153793,657,AMEY PLC,TFE001,Technical Services Manager,FL Day Works,3301,ELECTRIC SUPPLY MURTON,FOOLIG,Footway Lighting,02258,Footway lighting
http://statistics.data.gov.uk/id/local-authority/16UF,Eden District Council,18/11/2016,153807,660,THE CUMBRIA CLOCK COMPANY,CUM026,Technical Services Manager,Building Maintenance,1000,CLOCK SERVICING,PROAME,Provision of Ameneties,02255,M'ce of Public Clocks
http://statistics.data.gov.uk/id/local-authority/16UF,Eden District Council,18/11/2016,153842,600,IAN CANNON LTD,CAN004,Technical Services Manager,Abnormal maintenance,1007,POTHOLE REPAIR,OFFSTR,Vehicle Parking Off Street,02167,Vehicle parking
http://statistics.data.gov.uk/id/local-authority/16UF,Eden District Council,18/11/2016,152944,861.65,PLAYDALE PLAYGROUNDS LTD,PLA007,Technical Services Manager,GM External Contractors,1080,MINI ORBITOR,PARKOS,Parks and Open Spaces,02140,Castle Park grounds
http://statistics.data.gov.uk/id/local-authority/16UF,Eden District Council,18/11/2016,152945,861.65,PLAYDALE PLAYGROUNDS LTD,PLA007,Technical Services Manager,GM External Contractors,1080,MINI ORBITOR,PARKOS,Parks and Open Spaces,02143,Play Areas
http://statistics.data.gov.uk/id/local-authority/16UF,Eden District Council,18/11/2016,153685,1232.45,HEATONS OFFICE SOLUTIONS LTD,LAK004,Legal Services Manager,Equipment � purchase,2000,STATIONERY/PAPER/CHAIR,ELECTI,Elections,01068,Elections
http://statistics.data.gov.uk/id/local-authority/16UF,Eden District Council,18/11/2016,152676,3165.37,VOLKSWAGEN GROUP LEASING,VOL003,Environmental Services,Operational leases (Leased car scheme),1502,INITIAL INSTALMENT PY16 BWK,CODOGS,Community Wardens,03044,Community  Warden
http://statistics.data.gov.uk/id/local-authority/16UF,Eden District Council,18/11/2016,152677,3165.37,VOLKSWAGEN GROUP LEASING,VOL003,Environmental Services,Operational leases (Leased car scheme),1502,INITIAL INSTALLATION PY16 CVD,CODOGS,Community Wardens,03044,Community  Warden
http://statistics.data.gov.uk/id/local-authority/16UF,Eden District Council,18/11/2016,152929,-510.3,VOLKSWAGEN GROUP LEASING,VOL003,Environmental Services,Operational leases (Leased car scheme),1502,PX13KHP EARLY TERMINATION CREDIT NOTE,CODOGS,Community Wardens,03044,Community  Warden
http://statistics.data.gov.uk/id/local-authority/16UF,Eden District Council,18/11/2016,152930,-927.36,VOLKSWAGEN GROUP LEASING,VOL003,Environmental Services,Operational leases (Leased car scheme),1502,PX13KGP EARLY TERMINATION CREDIT NOTE,CODOGS,Community Wardens,03044,Community  Warden
http://statistics.data.gov.uk/id/local-authority/16UF,Eden District Council,18/11/2016,152934,-680.42,VOLKSWAGEN GROUP LEASING,VOL003,Environmental Services,Operational leases (Leased car scheme),1502,INFORMAL EXTENSION RENTAL CREDIT,CODOGS,Community Wardens,03044,Community  Warden
http://statistics.data.gov.uk/id/local-authority/16UF,Eden District Council,18/11/2016,153240,2337,PRO-TECT UK SECURITY & TRAINING LTD,PRO005,Legal Services Manager,Grants and contributions,2079,DOOR SUPERVISOR,CRDRPA,Crime & Disorder Reduction Partnership,09091,CDRP
http://statistics.data.gov.uk/id/local-authority/16UF,Eden District Council,18/11/2016,153241,1821,PRO-TECT UK SECURITY & TRAINING LTD,PRO005,Legal Services Manager,Grants and contributions,2079,DOOR SUPERVISOR,CRDRPA,Crime & Disorder Reduction Partnership,09091,CDRP
http://statistics.data.gov.uk/id/local-authority/16UF,Eden District Council,18/11/2016,153242,1926,PRO-TECT UK SECURITY & TRAINING LTD,PRO005,Legal Services Manager,Grants and contributions,2079,DOOR SUPERVISORS,CRDRPA,Crime & Disorder Reduction Partnership,09091,CDRP
http://statistics.data.gov.uk/id/local-authority/16UF,Eden District Council,18/11/2016,153243,2592,PRO-TECT UK SECURITY & TRAINING LTD,PRO005,Legal Services Manager,Grants and contributions,2079,DOOR SUPERVISORS,CRDRPA,Crime & Disorder Reduction Partnership,09091,CDRP
http://statistics.data.gov.uk/id/local-authority/16UF,Eden District Council,18/11/2016,153244,1080,PRO-TECT UK SECURITY & TRAINING LTD,PRO005,Legal Services Manager,Grants and contributions,2079,DOOR SUPERVISORS,CRDRPA,Crime & Disorder Reduction Partnership,09091,CDRP
http://statistics.data.gov.uk/id/local-authority/16UF,Eden District Council,18/11/2016,153245,900,PRO-TECT UK SECURITY & TRAINING LTD,PRO005,Legal Services Manager,Grants and contributions,2079,DOOR SUPERVISORS,CRDRPA,Crime & Disorder Reduction Partnership,09091,CDRP
http://statistics.data.gov.uk/id/local-authority/16UF,Eden District Council,18/11/2016,153246,750,PRO-TECT UK SECURITY & TRAINING LTD,PRO005,Legal Services Manager,Grants and contributions,2079,DOOR SUPERVISORS,CRDRPA,Crime & Disorder Reduction Partnership,09091,CDRP
http://statistics.data.gov.uk/id/local-authority/16UF,Eden District Council,18/11/2016,153337,-861.65,PLAYDALE PLAYGROUNDS LTD,PLA007,Technical Services Manager,GM External Contractors,1080,MINI ORBITOR RETURNED INV 24314,PARKOS,Parks and Open Spaces,02140,Castle Park grounds
http://statistics.data.gov.uk/id/local-authority/16UF,Eden District Council,18/11/2016,153401,24127.31,EDEN HOUSING ASSOCIATION LTD,EDE001,Environmental Services,Other charges for services,2047,HOMELESSNESS ADVICE 4/7/16-2/10/16,HOMLES,Homelessness,02296,Homelessness Grant Fund
http://statistics.data.gov.uk/id/local-authority/16UF,Eden District Council,18/11/2016,153418,2811.06,VODAFONE LTD,VOD003,Information Technology Manager,Governement Connect,2183,DATA SERVICE,INFTEC,Information Technology,00102,Information Technology
http://statistics.data.gov.uk/id/local-authority/16UF,Eden District Council,18/11/2016,153453,3705.75,MLL TELECOM LTD,MLL001,Information Technology Manager,IT Contracts & Maintenance,2062,RENTAL OCT - DEC 2016,INFTEC,Information Technology,00102,Information Technology
http://statistics.data.gov.uk/id/local-authority/16UF,Eden District Council,18/11/2016,153581,2480,REDACTED INFORMATION,BEL024,Director of Finance,Grants and contributions,2079,PLFRG REF EDC16227,FLOOD,Flood Dec 2015,09318,Flood Dec 2015
http://statistics.data.gov.uk/id/local-authority/16UF,Eden District Council,18/11/2016,153582,4938.89,CALE BRIPARC,CAL008,Technical Services Manager,Maintenance of parking meters,1020,MAINTENANCE CONTRACT,OFFSTR,Vehicle Parking Off Street,02167,Vehicle parking
http://statistics.data.gov.uk/id/local-authority/16UF,Eden District Council,18/11/2016,153590,13500,EDEN ARTS TRUST,EDE013,Commercial Services Manager,Balance Sheet entry BS,6003,90% LEP EVENTS/MARKETING GRANT,LEPT,LEP Tactical Fund,09320,LEP Tactical Fund
http://statistics.data.gov.uk/id/local-authority/16UF,Eden District Council,18/11/2016,153600,4260,REDACTED INFORMATION,THO050,Director of Finance,Grants and contributions,2079,PLFR GRANR EDC 16202,FLOOD,Flood Dec 2015,09318,Flood Dec 2015
http://statistics.data.gov.uk/id/local-authority/16UF,Eden District Council,18/11/2016,153656,4850.4,REDACTED INFORMATION,BOY007,Director of Finance,Grants and contributions,2079,PLFRG EDC16118,FLOOD,Flood Dec 2015,09318,Flood Dec 2015
http://statistics.data.gov.uk/id/local-authority/16UF,Eden District Council,18/11/2016,153657,4680,REDACTED INFORMATION,VEN005,Director of Finance,Grants and contributions,2079,PLFRG EDC16219,FLOOD,Flood Dec 2015,09318,Flood Dec 2015
http://statistics.data.gov.uk/id/local-authority/16UF,Eden District Council,18/11/2016,153667,2145.6,REDACTED INFORMATION,BUR037,Director of Finance,Grants and contributions,2079,PLFRG EDC16200,FLOOD,Flood Dec 2015,09318,Flood Dec 2015
http://statistics.data.gov.uk/id/local-authority/16UF,Eden District Council,18/11/2016,153680,-1000,VOLKSWAGEN GROUP LEASING,VOL003,Environmental Services,Operational leases (Leased car scheme),1502,EXCESS MILEAGE CREDIT,CODOGS,Community Wardens,03044,Community  Warden
http://statistics.data.gov.uk/id/local-authority/16UF,Eden District Council,18/11/2016,153681,-1000,VOLKSWAGEN GROUP LEASING,VOL003,Environmental Services,Operational leases (Leased car scheme),1502,CREDIT EXCESS MILEAGE,CODOGS,Community Wardens,03044,Community  Warden
http://statistics.data.gov.uk/id/local-authority/16UF,Eden District Council,18/11/2016,153684,22000,APPLEBY HERTITAGE CENTRE,APP008,Commercial Services Manager,Grants and contributions,2079,1ST TRANCH PAYMENT EDEN APPRENTISHIP SCH,EDEVPR,Economic Development and Promotion,02005,Apprenticeship Scheme
http://statistics.data.gov.uk/id/local-authority/16UF,Eden District Council,18/11/2016,153709,1946.91,PENRITH BUILDING SOCIETY,PEN065,Environmental Services,Grants and contributions,2079,1801008048EDC MORTGAGE GRANT,OHOUSG,Housing Delivery,02388,Mortgage Indemnitiy Grants
http://statistics.data.gov.uk/id/local-authority/16UF,Eden District Council,18/11/2016,153740,5000,REDACTED INFORMATION,RYA004,Director of Finance,Grants and contributions,2079,PLFRGRANT EDC 16318,FLOOD,Flood Dec 2015,09318,Flood Dec 2015
http://statistics.data.gov.uk/id/local-authority/16UF,Eden District Council,18/11/2016,153743,3912,REDACTED INFORMATION,BIR018,Director of Finance,Grants and contributions,2079,PLFRGRANT EDC16240,FLOOD,Flood Dec 2015,09318,Flood Dec 2015
http://statistics.data.gov.uk/id/local-authority/16UF,Eden District Council,18/11/2016,153744,5000,REDACTED INFORMATION,TIN004,Director of Finance,Grants and contributions,2079,PLFRGRANT EDC16220,FLOOD,Flood Dec 2015,09318,Flood Dec 2015
http://statistics.data.gov.uk/id/local-authority/16UF,Eden District Council,18/11/2016,153749,526.52,AMEY PLC,TFE001,Technical Services Manager,Grounds Maint Contract additional works,1001,GM96,CEMETE,Cemeteries,02226,Cemeteries
http://statistics.data.gov.uk/id/local-authority/16UF,Eden District Council,18/11/2016,153753,14796.45,AMEY PLC,TFE001,Technical Services Manager,Window cleaning,1040,2016-BC-11,PUBCON,Public Conveniences,02630,Disabled Toilet Moot Hall Appleby
http://statistics.data.gov.uk/id/local-authority/16UF,Eden District Council,18/11/2016,153754,2034,REDACTED INFORMATION,EDM006,Director of Finance,Grants and contributions,2079,PLFRGRANT EDC16197,FLOOD,Flood Dec 2015,09318,Flood Dec 2015
http://statistics.data.gov.uk/id/local-authority/16UF,Eden District Council,18/11/2016,153756,1651.5,IMPACT HOUSING ASSOCIATION,IMP001,Environmental Services,Grants and contributions,2079,ERF-16-181 AT HOME IN EDEN,RENGRT,Renovation Grant Scheme,02293,Staying put project
http://statistics.data.gov.uk/id/local-authority/16UF,Eden District Council,18/11/2016,153757,2500,SCAWS TENANTS AND RESIDENTS ASSOCIATION,SCA005,Commercial Services Manager,Balance Sheet entry BS,6003,FINAL 25% EDEN COMMUNITY FUND GRANT,COMMF,Community Fund,10400,Community Fund
http://statistics.data.gov.uk/id/local-authority/16UF,Eden District Council,18/11/2016,153761,1250,ULLSWATER ASSOCIATION,ULL006,Commercial Services Manager,Balance Sheet entry BS,6003,FINAL 10% ULLSWATER MARKETING PROG,LEPT,LEP Tactical Fund,09320,LEP Tactical Fund
http://statistics.data.gov.uk/id/local-authority/16UF,Eden District Council,18/11/2016,153818,564.76,NEOPOST LIMITED,NEO002,Corporate Services Manager,Postages,2054,4 X MAILMARK CARTRIDGES,CENTRA,Central Expenses,00205,Postages Town Hall
http://statistics.data.gov.uk/id/local-authority/16UF,Eden District Council,18/11/2016,153819,5000,REDACTED INFORMATION,FAR017,Director of Finance,Grants and contributions,2079,PLFRGRANT EDC16249,FLOOD,Flood Dec 2015,09318,Flood Dec 2015
http://statistics.data.gov.uk/id/local-authority/16UF,Eden District Council,18/11/2016,153821,3465,AWS BATHROOM SUPPLIES LTD,AWS001,Environmental Services,Capital grants,5505,FINAL PAYMENT  PENRITH,MEREGR,1996 Mandatory Renovation Grants,06035,Disabled Facility Grants
http://statistics.data.gov.uk/id/local-authority/16UF,Eden District Council,18/11/2016,153822,5000,REDACTED INFORMATION,HAR072,Director of Finance,Grants and contributions,2079,PLFRGRANT EDC 16207,FLOOD,Flood Dec 2015,09318,Flood Dec 2015
http://statistics.data.gov.uk/id/local-authority/16UF,Eden District Council,18/11/2016,153823,5000,REDACTED INFORMATION,WAL043,Director of Finance,Grants and contributions,2079,PLFRGRANT EDC16030,FLOOD,Flood Dec 2015,09318,Flood Dec 2015
http://statistics.data.gov.uk/id/local-authority/16UF,Eden District Council,18/11/2016,153825,3228,REDACTED INFORMATION,FIS011,Director of Finance,Grants and contributions,2079,PLFRGRANT EDC16199,FLOOD,Flood Dec 2015,09318,Flood Dec 2015
http://statistics.data.gov.uk/id/local-authority/16UF,Eden District Council,18/11/2016,153827,625,LAZONBY VILLAGE HALL,LAZ004,Director of Finance,Grants and contributions,2079,FINAL 25% EDEN COMMUNITY FUND,FLOOD,Flood Dec 2015,09318,Flood Dec 2015
http://statistics.data.gov.uk/id/local-authority/16UF,Eden District Council,18/11/2016,153836,64262.9,AMEY PLC,TFE001,Technical Services Manager,Contract refuse collection,3003,M-RC56,REFCOL,Refuse Collection,03050,Clinical Expenditure
http://statistics.data.gov.uk/id/local-authority/16UF,Eden District Council,18/11/2016,153837,16837.1,AMEY PLC,TFE001,Environmental Services,Street Cleaning Contract,3100,M-SC56,APFAIR,Appleby Fair,03036,Appleby Fair
http://statistics.data.gov.uk/id/local-authority/16UF,Eden District Council,18/11/2016,153845,2735,CUMBRIA WASTE RECYCLING LTD,CUM022,Technical Services Manager,Garden Waste Skips,2014,GREEN BOX COLLECTION VARIOUS,RECYCL,Recycling,03047,Recycling
http://statistics.data.gov.uk/id/local-authority/16UF,Eden District Council,18/11/2016,153852,7466.26,CUMBRIA WASTE RECYCLING LTD,CUM022,Technical Services Manager,Recycling  - Bring Sites,3601,BS-50,RECYCL,Recycling,03047,Recycling
http://statistics.data.gov.uk/id/local-authority/16UF,Eden District Council,18/11/2016,153853,19070.24,CUMBRIA WASTE RECYCLING LTD,CUM022,Technical Services Manager,Recycling - Bag & Box,3600,GB-07-16/17,RECYCL,Recycling,03047,Recycling
http://statistics.data.gov.uk/id/local-authority/16UF,Eden District Council,18/11/2016,153854,21243.07,CUMBRIA WASTE RECYCLING LTD,CUM022,Technical Services Manager,Recycling - Garden Waste,3602,GW-07-16/17,RECYCL,Recycling,03047,Recycling
http://statistics.data.gov.uk/id/local-authority/16UF,Eden District Council,18/11/2016,153856,598.9,WOODWARD SHE LIMITED,WOO004,Technical Services Manager,Safety training  205800 only,2074,H & S LAW FOR MANAGERS X 8 DELEGATES,CENTRA,Central Expenses,00212,Health & Safety
http://statistics.data.gov.uk/id/local-authority/16UF,Eden District Council,18/11/2016,154057,949,BUSY BEES CHILDCARE VOUCHERS,BUS004,Commercial Services Manager,Child Care Voucher Scheme,0005,childcare vouchers nov 16 ddr,COMSER,Commercial Services,00310,Commercial Services
http://statistics.data.gov.uk/id/local-authority/16UF,Eden District Council,25/11/2016,153669,1313.34,EGBERT H TAYLOR AND COMPANY LIMITED,EGB001,Technical Services Manager,Bank - Replacement,2010,1280 PAPER LOCKING LID,RECYCL,Recycling,03047,Recycling
http://statistics.data.gov.uk/id/local-authority/16UF,Eden District Council,25/11/2016,153936,2530,LAKES COLLEGE WEST CUMBRIA,LAK027,Human Resources Manager,Training Expenses,0060,COURSE FEES 2016/17 ,STADEV,Staff Development,00225,Staff Training Communities
http://statistics.data.gov.uk/id/local-authority/16UF,Eden District Council,25/11/2016,153947,630,NORTHGATE PUBLIC SERVICES (UK) LTD,NOR042,Information Technology Manager,Computer equipment,2061,DIALOGIC CARD,INFTEC,Information Technology,00102,Information Technology
http://statistics.data.gov.uk/id/local-authority/16UF,Eden District Council,25/11/2016,153948,1046.32,PROBRAND LIMITED,PRO008,Information Technology Manager,Computer equipment,2061,LAPTOPS/RAM,INFTEC,Information Technology,00102,Information Technology
http://statistics.data.gov.uk/id/local-authority/16UF,Eden District Council,25/11/2016,153855,630,QUATTRO PRODUCTS LTD,QUA002,Technical Services Manager,Replacement Works (Play Areas),2195,2 X PLAYGROUNDS AT TEBAY,PARKOS,Parks and Open Spaces,02143,Play Areas
http://statistics.data.gov.uk/id/local-authority/16UF,Eden District Council,25/11/2016,152505,1785.14,AMEY PLC,TFE001,Technical Services Manager,Planned Maintenance,1016,MOVE FURNITURE OIL PAINTING FOR DECORATING,ADMBLD,Administrative Buildings,00500,Town Hall
http://statistics.data.gov.uk/id/local-authority/16UF,Eden District Council,25/11/2016,152507,534.23,AMEY PLC,TFE001,Technical Services Manager,Building Maintenance - Leisure,1101,BREAK UP CONCRETE RE DUCT REPLACE,LEICEN,Eden Leisure Centre & Appleby Swimming P,02097,Penrith Leisure Centre
http://statistics.data.gov.uk/id/local-authority/16UF,Eden District Council,25/11/2016,153850,606.98,PRINT IMAGE NETWORK LTD,PRI011,Legal Services Manager,Printing and stationary,2037,EDEN CANVASS ITR MAILINGS 2016,REGELE,Register of Electors,01001,Register of Electors
http://statistics.data.gov.uk/id/local-authority/16UF,Eden District Council,25/11/2016,153857,3503.5,NEPRO LTD,NEP001,Commercial Services Manager,Professional fees,2045,EDEN FOOD 7 FARMING LOCAL DEVELOPMENT,EDEVPR,Economic Development and Promotion,02300,Food and Farming Enterprise Zone
http://statistics.data.gov.uk/id/local-authority/16UF,Eden District Council,25/11/2016,153908,2900.81,AMEY PLC,TFE001,Technical Services Manager,Street Cleaning Contract,3100,SC40,STRCLE,Street Cleaning,02248,Fly tipping on verge
http://statistics.data.gov.uk/id/local-authority/16UF,Eden District Council,25/11/2016,153912,2995.7,CUMBRIA WASTE RECYCLING LTD,CUM022,Technical Services Manager,material price fluctuations,3604,BS-F-27-16/17,RECYCL,Recycling,03047,Recycling
http://statistics.data.gov.uk/id/local-authority/16UF,Eden District Council,25/11/2016,153913,700,PENRITH TOWN COUNCIL,PEN080,Technical Services Manager,VRC Payments,2103,APR-SEPT 2016 MORRISONS BRING SITE CREDIT,RECYCL,Recycling,03047,Recycling
http://statistics.data.gov.uk/id/local-authority/16UF,Eden District Council,25/11/2016,153924,2452.43,AMEY PLC,TFE001,Technical Services Manager,Refuse Contract Dayworks,3012,RC46,REFCOL,Refuse Collection,03049,Refuse Collection Domestic
http://statistics.data.gov.uk/id/local-authority/16UF,Eden District Council,25/11/2016,153925,15727.44,AMEY PLC,TFE001,Technical Services Manager,GM INSPECTIONS & MAINTENANCE,1089,M-GM56,CLCHYD,Closed Church Yards,02246,War Memorials
http://statistics.data.gov.uk/id/local-authority/16UF,Eden District Council,25/11/2016,153926,1844.07,CUMBRIA WASTE RECYCLING LTD,CUM022,Technical Services Manager,material price fluctuations,3604,F-07-16/17,RECYCL,Recycling,03047,Recycling
http://statistics.data.gov.uk/id/local-authority/16UF,Eden District Council,25/11/2016,153931,1735,QUATTRO PRODUCTS LTD,QUA002,Technical Services Manager,Replacement Works (Play Areas),2195,WORK TO SURFACING,PARKOS,Parks and Open Spaces,02143,Play Areas
http://statistics.data.gov.uk/id/local-authority/16UF,Eden District Council,25/11/2016,153935,1533.3,SUE POWELL CONSULTANCY LIMITED,SUE001,Environmental Services,Balance Sheet entry BS,6003,CHG WORK AUG - NOV 2016,HOUSS,Riverside Housing Grant,10394,Riverside Housing Grant
http://statistics.data.gov.uk/id/local-authority/16UF,Eden District Council,25/11/2016,153942,2016.5,REDACTED INFORMATION,WHI021,Director of Finance,Balance Sheet entry BS,6003,PLFRGRANT EDC16188,FLOOD,Flood Dec 2015,09318,Flood Dec 2015
http://statistics.data.gov.uk/id/local-authority/16UF,Eden District Council,25/11/2016,153952,1267.12,REDACTED INFORMATION,JAM007,Director of Finance,Balance Sheet entry BS,6003,PLFRG EDC16198,FLOOD,Flood Dec 2015,09318,Flood Dec 2015
http://statistics.data.gov.uk/id/local-authority/16UF,Eden District Council,25/11/2016,153953,1699,C W COX & SONS (KENDAL)  LTD,COX001,Environmental Services,Capital grants,5505,130038,MEREGR,1996 Mandatory Renovation Grants,06035,Disabled Facility Grants
http://statistics.data.gov.uk/id/local-authority/16UF,Eden District Council,25/11/2016,153954,3130,PPM LTD,PPM001,Environmental Services,Capital grants,5505,150058/ PENRITH,MEREGR,1996 Mandatory Renovation Grants,06035,Disabled Facility Grants
http://statistics.data.gov.uk/id/local-authority/16UF,Eden District Council,25/11/2016,153964,1000,REDACTED INFORMATION,CHA030,Environmental Services,Landlords Grants,5525,160018/,DIREGR,1996 Discretionary Renovation Grants,06034,1996 Discretionary Renovation Grants
http://statistics.data.gov.uk/id/local-authority/16UF,Eden District Council,25/11/2016,153317,550,CHRIS WAKEFIELD TREE SVCS,CHR001,Technical Services Manager,Abnormal maintenance,1007,PATEGILL WALK MAPLE,PARKOS,Parks and Open Spaces,02127,Dangerous trees
http://statistics.data.gov.uk/id/local-authority/16UF,Eden District Council,25/11/2016,153688,4205.75,NPS NORTH WEST LTD,NPS001,Planning Services,Professional fees,2045,PROFESSIONAL SERVICES,DEVCOE,Development Control & Enforcement,03010,Development Control & Enforcement
http://statistics.data.gov.uk/id/local-authority/16UF,Eden District Council,25/11/2016,153707,700,APPLEBY TOWN COUNCIL,APP001,Technical Services Manager,VRC Payments,2103,PAYMENT FOR APPLEBY RECYCLING CENTRE,RECYCL,Recycling,03047,Recycling
http://statistics.data.gov.uk/id/local-authority/16UF,Eden District Council,25/11/2016,153808,858.35,PRINT IMAGE NETWORK LTD,PRI011,Legal Services Manager,Printing and stationary,2037,REVIEW MAILING,REGELE,Register of Electors,01001,Register of Electors
http://statistics.data.gov.uk/id/local-authority/16UF,Eden District Council,25/11/2016,154103,513.93,SHAP PARISH COUNCIL,SHA008,Technical Services Manager,VRC Payments,2103,Recycling Credits Qtr 1 & Qtr2,RECYCL,Recycling,03047,Recycling
http://statistics.data.gov.uk/id/local-authority/16UF,Eden District Council,23/11/2016,153944,1275,ASTUN TECHNOLOGY LIMITED,AST004,Information Technology Manager,GIS Platform,2350,ISHAREMAPS IMPLEMENTATION,INFTEC,Information Technology,00102,Information Technology
http://statistics.data.gov.uk/id/local-authority/16UF,Eden District Council,23/11/2016,154147,1700,ASTUN TECHNOLOGY LIMITED,AST004,Information Technology Manager,GIS Platform,2350,2 X ISHAREMAPS IMPLEMENTATION,INFTEC,Information Technology,00102,Information Technology
http://statistics.data.gov.uk/id/local-authority/16UF,Eden District Council,25/11/2016,154113,1260,SUSTAINABLE ENERGY EDEN LTD,SUS003,Commercial Services Manager,Grants and contributions,2079,GRANT AID 2015 & 2016,EDEVPR,Economic Development and Promotion,02007,Match Funding
http://statistics.data.gov.uk/id/local-authority/16UF,Eden District Council,25/11/2016,154114,700,IAN CANNON LTD,CAN004,Technical Services Manager,Grounds Maint Contract additional works,1001,REPAIR RAILINGS AT CEMETERY,CEMETE,Cemeteries,02226,Cemeteries
http://statistics.data.gov.uk/id/local-authority/16UF,Eden District Council,25/11/2016,154293,1205,THE DOCUMENT MANAGEMENT GROUP LTD,DOC002,Legal Services Manager,Miscellaneous,2092,12 months support 1 Fujitsu 2 x Kodak 16,REGELE,Register of Electors,01001,Register of Electors
http://statistics.data.gov.uk/id/local-authority/16UF,Eden District Council,25/11/2016,151331,1651.56,AMEY PLC,TFE001,Technical Services Manager,Planned Maintenance,1016,NEW WINDOW GLENRIDDING PCS,PUBCON,Public Conveniences,02272,Glenridding Public Convenience
http://statistics.data.gov.uk/id/local-authority/16UF,Eden District Council,25/11/2016,152027,588.55,AMEY PLC,TFE001,Communities Director,Promotions,2081,COLLECT /MAKEBOARDS,EDEVPR,Economic Development and Promotion,02003,Economic Promotion - BRRS
http://statistics.data.gov.uk/id/local-authority/16UF,Eden District Council,23/11/2016,153774,783.51,AMEY PLC,TFE001,Technical Services Manager,Street name plates,2029,INSTALL STREET SIGNS,PROAME,Provision of Ameneties,02252,Provision of Amenities
http://statistics.data.gov.uk/id/local-authority/16UF,Eden District Council,23/11/2016,153789,2304,AMEY PLC,TFE001,Technical Services Manager,FL Day Works,3301,REMOVE OLD LIGHTING COLUMNS,FOOLIG,Footway Lighting,02258,Footway lighting
http://statistics.data.gov.uk/id/local-authority/16UF,Eden District Council,25/11/2016,154132,4526,REDACTED INFORMATION,MCH003,Director of Finance,Grants and contributions,2079,PLFRGRANT EDC 16215,FLOOD,Flood Dec 2015,09318,Flood Dec 2015
http://statistics.data.gov.uk/id/local-authority/16UF,Eden District Council,25/11/2016,154134,1190,OCEAN MEDIA GROUP LTD,OCE001,Environmental Services,CLG Grant Expenditure,2157,ON LINE RECRUITMENT,HOMLES,Homelessness,02296,Homelessness Grant Fund
http://statistics.data.gov.uk/id/local-authority/16UF,Eden District Council,25/11/2016,154136,5000,REDACTED INFORMATION,MAC018,Director of Finance,Grants and contributions,2079,PLFRGRANT EDC 16231,FLOOD,Flood Dec 2015,09318,Flood Dec 2015
http://statistics.data.gov.uk/id/local-authority/16UF,Eden District Council,25/11/2016,154137,5000,REDACTED INFORMATION,HEP004,Director of Finance,Grants and contributions,2079,PLFRGRANT EDC16239,FLOOD,Flood Dec 2015,09318,Flood Dec 2015
http://statistics.data.gov.uk/id/local-authority/16UF,Eden District Council,25/11/2016,154138,5000,REDACTED INFORMATION,WIL079,Director of Finance,Grants and contributions,2079,PLFRGRANT EDC 16155,FLOOD,Flood Dec 2015,09318,Flood Dec 2015
http://statistics.data.gov.uk/id/local-authority/16UF,Eden District Council,23/11/2016,154140,2493.43,REDACTED INFORMATION,NEV001,Director of Finance,Grants and contributions,2079,PLFRGRANT EDC 16224,FLOOD,Flood Dec 2015,09318,Flood Dec 2015
http://statistics.data.gov.uk/id/local-authority/16UF,Eden District Council,23/11/2016,154141,1974,REDACTED INFORMATION,APP019,Director of Finance,Grants and contributions,2079,PLFRGRANT EDC 16008,FLOOD,Flood Dec 2015,09318,Flood Dec 2015
http://statistics.data.gov.uk/id/local-authority/16UF,Eden District Council,25/11/2016,154142,2837.96,OYSTER PARTNERSHIP,OYS001,Planning Services,Agency Staff,0003,10-17/10/16,PLASER,Planning Services,00304,Planning Services
http://statistics.data.gov.uk/id/local-authority/16UF,Eden District Council,25/11/2016,154145,500,APPLEBY COMMUNITY ENTERPRISES LTD,APP034,Commercial Services Manager,Balance Sheet entry BS,6003,FINAL 10% LEP TACTICAL EVENTS & MARKETING,LEPT,LEP Tactical Fund,09320,LEP Tactical Fund
http://statistics.data.gov.uk/id/local-authority/16UF,Eden District Council,25/11/2016,154150,3300,AWS BATHROOM SUPPLIES LTD,AWS001,Environmental Services,Capital grants,5505,FINAL PAYMENT  PENRITH,MEREGR,1996 Mandatory Renovation Grants,06035,Disabled Facility Grants
http://statistics.data.gov.uk/id/local-authority/16UF,Eden District Council,25/11/2016,154151,2843.27,AMEY PLC,TFE001,Technical Services Manager,FL  Contract,3300,FL-08/2016,FOOLIG,Footway Lighting,02258,Footway lighting
http://statistics.data.gov.uk/id/local-authority/16UF,Eden District Council,25/11/2016,154153,2000,NEOPOST LIMITED,NEO001,Corporate Services Manager,Postages,2054,FRANKING REFILL,CENTRA,Central Expenses,00205,Postages Town Hall
http://statistics.data.gov.uk/id/local-authority/16UF,Eden District Council,23/11/2016,154159,2983.5,REDACTED INFORMATION,WHI021,Director of Finance,Grants and contributions,2079,PLFRGRANT EDC16188,FLOOD,Flood Dec 2015,09318,Flood Dec 2015
http://statistics.data.gov.uk/id/local-authority/16UF,Eden District Council,23/11/2016,154163,1200,WSP UK LTD,WSP001,Environmental Services,Professional fees,2045,completion decc hndu project pase 2 part,POLCNL,Pollution Control,03090,Heat Network Funding
http://statistics.data.gov.uk/id/local-authority/16UF,Eden District Council,25/11/2016,154167,850,ELECTRICITY NORTH WEST LTD,ELE005,Technical Services Manager,Building works,5502,reconnection  light spire cottage,FOOLIG,Cap Footway Lighting,06149,Cap Footway Lighting
http://statistics.data.gov.uk/id/local-authority/16UF,Eden District Council,25/11/2016,154168,926,ELECTRICITY NORTH WEST LTD,ELE005,Technical Services Manager,Building works,5502,transfer eastern house nenthead,FOOLIG,Cap Footway Lighting,06149,Cap Footway Lighting
http://statistics.data.gov.uk/id/local-authority/16UF,Eden District Council,25/11/2016,154170,1009,ELECTRICITY NORTH WEST LTD,ELE005,Technical Services Manager,Building works,5502,reconnection meadow bank melmerby,FOOLIG,Cap Footway Lighting,06149,Cap Footway Lighting
http://statistics.data.gov.uk/id/local-authority/16UF,Eden District Council,25/11/2016,154173,926,ELECTRICITY NORTH WEST LTD,ELE005,Technical Services Manager,Building works,5502,transfer opp war memorial warcop,FOOLIG,Cap Footway Lighting,06149,Cap Footway Lighting
http://statistics.data.gov.uk/id/local-authority/16UF,Eden District Council,25/11/2016,154174,926,ELECTRICITY NORTH WEST LTD,ELE005,Technical Services Manager,Building works,5502,transfer mount lea mount pleasant,FOOLIG,Cap Footway Lighting,06149,Cap Footway Lighting
http://statistics.data.gov.uk/id/local-authority/16UF,Eden District Council,23/11/2016,154177,926,ELECTRICITY NORTH WEST LTD,ELE005,Technical Services Manager,Building works,5502,transfer adj burn bank warcop,FOOLIG,Cap Footway Lighting,06149,Cap Footway Lighting
http://statistics.data.gov.uk/id/local-authority/16UF,Eden District Council,23/11/2016,154178,1009,ELECTRICITY NORTH WEST LTD,ELE005,Technical Services Manager,Building works,5502,reconnection beeboles cottage eamont bridge,FOOLIG,Cap Footway Lighting,06149,Cap Footway Lighting
http://statistics.data.gov.uk/id/local-authority/16UF,Eden District Council,25/11/2016,154180,2195.96,REDACTED INFORMATION,SIM015,Director of Finance,Grants and contributions,2079,PLFRGRANT EDC 16384,FLOOD,Flood Dec 2015,09318,Flood Dec 2015
http://statistics.data.gov.uk/id/local-authority/16UF,Eden District Council,25/11/2016,154181,1352,REDACTED INFORMATION,CHA036,Director of Finance,Grants and contributions,2079,PLFRGRANT EDC16244,FLOOD,Flood Dec 2015,09318,Flood Dec 2015
http://statistics.data.gov.uk/id/local-authority/16UF,Eden District Council,25/11/2016,154184,8810.88,WATER MANAGEMENT SOLUTIONS,WAT041,Technical Services Manager,Commission,2034,CHALLENGE AGAINST UU BROAD CLSE CAR PARK,OFFSTR,Vehicle Parking Off Street,02167,Vehicle parking
http://statistics.data.gov.uk/id/local-authority/16UF,Eden District Council,25/11/2016,154186,1388.2,BOTTOMLINE TECHNOLOGIES EUROPE LIMITED,BOT002,Financial Services Manager,Software � maintenance,2067,BRE-MT18-10000 C-SERIES,FINSER,Financial Services,00101,Financial Services
http://statistics.data.gov.uk/id/local-authority/16UF,Eden District Council,25/11/2016,154188,-1750.61,AMEY PLC,TFE001,Director of Finance,Balance Sheet entry BS,6003,CREDIT FOR INVOICE 0090537192,FLOOD,Flood Dec 2015,09318,Flood Dec 2015
http://statistics.data.gov.uk/id/local-authority/16UF,Eden District Council,23/11/2016,154189,1750.61,AMEY PLC,TFE001,Director of Finance,Balance Sheet entry BS,6003,REPLACE CILL BOARDS IN GYM,FLOOD,Appleby Pool Flood 2015,09319,Appleby Pool Flood 2015
http://statistics.data.gov.uk/id/local-authority/16UF,Eden District Council,23/11/2016,154192,990,RUPERT DEWHIRST AND ASSOCIATES LTD,RUP001,Director of Finance,Miscellaneous,2092,NOVEMBER 16 - 2 DAYS TOTAL,DIRFIN,Director of Finance,00100,Director of Finance / Secretary
http://statistics.data.gov.uk/id/local-authority/16UF,Eden District Council,25/11/2016,153965,1567.5,OYSTER PARTNERSHIP,OYS001,Planning Services,Printing and stationary,2037, W/C 7/11/16,LOPLPO,Local Plans & Policy,03004,Eden Local Plan
http://statistics.data.gov.uk/id/local-authority/16UF,Eden District Council,25/11/2016,153971,818.73,NPOWER LTD,NPO001,Technical Services Manager,Electricity,1022,TOWN HALL,ADMBLD,Administrative Buildings,00500,Town Hall
http://statistics.data.gov.uk/id/local-authority/16UF,Eden District Council,25/11/2016,153974,733.32,NPOWER LTD,NPO001,Technical Services Manager,Electricity,1022,MANSION HOUSE,ADMBLD,Administrative Buildings,00502,Mansion House
http://statistics.data.gov.uk/id/local-authority/16UF,Eden District Council,25/11/2016,153988,1642.62,REDACTED INFORMATION,SOW010,Director of Finance,Grants and contributions,2079,PLFRGRANT EDC16089,FLOOD,Flood Dec 2015,09318,Flood Dec 2015
http://statistics.data.gov.uk/id/local-authority/16UF,Eden District Council,25/11/2016,153991,1500,EDEN ARTS TRUST,EDE013,Commercial Services Manager,Balance Sheet entry BS,6003,FINAL 10% ULLSWATER DROVING EVENT,LEPT,LEP Tactical Fund,09320,LEP Tactical Fund
http://statistics.data.gov.uk/id/local-authority/16UF,Eden District Council,23/11/2016,153992,2000,EDEN ARTS TRUST,EDE013,Commercial Services Manager,Balance Sheet entry BS,6003,FINAL 10% SUMMER PUDDINGS EVENT,LEPT,LEP Tactical Fund,09320,LEP Tactical Fund
http://statistics.data.gov.uk/id/local-authority/16UF,Eden District Council,23/11/2016,153993,10842.24,PAUL SMITH & CO PLUMBING & BUILDING SERVICES LTD,PAU005,Technical Services Manager,Building Maintenance - Leisure,1101,COMPLETION OF WORKS,LEICEN,Eden Leisure Centre & Appleby Swimming P,02097,Penrith Leisure Centre
http://statistics.data.gov.uk/id/local-authority/16UF,Eden District Council,25/11/2016,154112,893.6,NORTH WEST LOCAL AUTHORITIES EMPLOYERS ORGANISATION,NOR001,Human Resources Manager,Workforce Development Plan Activity,2229,ADVISORY SERVICE,STADEV,Staff Development,00222,Central Training Budget
http://statistics.data.gov.uk/id/local-authority/16UF,Eden District Council,25/11/2016,154121,525,SOUTH LAKELAND DISTRICT COUNCIL,SOU006,Environmental Services,Professional fees,2045,LANGWATHBY HOUSING NEEDS SURVEY,OHOUSG,Housing Delivery,02302,Housing enabling
http://statistics.data.gov.uk/id/local-authority/16UF,Eden District Council,25/11/2016,154122,5000,EDEN BRIDGE ENTERPRISES LTD,EDE065,Director of Finance,Grants and contributions,2079,PLFRG EDEN16018,FLOOD,Flood Dec 2015,09318,Flood Dec 2015
http://statistics.data.gov.uk/id/local-authority/16UF,Eden District Council,25/11/2016,154126,1400,C W COX & SONS (KENDAL)  LTD,COX001,Environmental Services,Capital grants,5505,RELAY BATHROOM FLOOR,MEREGR,1996 Mandatory Renovation Grants,06035,Disabled Facility Grants
http://statistics.data.gov.uk/id/local-authority/16UF,Eden District Council,25/11/2016,153263,1102.14,OTIS LIMITED,OTI001,Technical Services Manager,Lifts,1018,LIFT MAINTENANCE 01/11/16 - 31/10/17,ADMBLD,Administrative Buildings,00500,Town Hall
http://statistics.data.gov.uk/id/local-authority/16UF,Eden District Council,23/11/2016,153526,905,RIBA PUBLICATIONS,RIB001,Technical Services Manager,Planned Maintenance,1016,NBS BUILDING ABRIDGED SERVICE 16/17,ADMBLD,Administrative Buildings,00502,Mansion House
http://statistics.data.gov.uk/id/local-authority/16UF,Eden District Council,23/11/2016,153701,1698.13,OYSTER PARTNERSHIP,OYS001,Planning Services,Agency Staff,0003, W/C 24/10/16,PLASER,Planning Services,00304,Planning Services
http://statistics.data.gov.uk/id/local-authority/16UF,Eden District Council,25/11/2016,153708,1857.5,CAPITA PROPERTY & INFRASTRUCTURE LTD,CAP002,Planning Services,Professional fees,2045,ARBORICULTURAL SERVICE OCT 2016,CONSER,Environmental Enhancement & Conservation,03012,Arboricutural Advice
http://statistics.data.gov.uk/id/local-authority/16UF,Eden District Council,25/11/2016,153755,550,OVALTECH LTD,OVA001,Information Technology Manager,Web Services,2065,WEB BENEFITS CALCULATOR 16/17,INFTEC,Information Technology,00102,Information Technology
http://statistics.data.gov.uk/id/local-authority/16UF,Eden District Council,25/11/2016,153830,1745.63,OYSTER PARTNERSHIP,OYS001,Planning Services,Agency Staff,0003, W/C 31.10.16,PLASER,Planning Services,00304,Planning Services
http://statistics.data.gov.uk/id/local-authority/16UF,Eden District Council,25/11/2016,153831,4462.8,REDACTED INFORMATION,BRO049,Director of Finance,Balance Sheet entry BS,6003,PLFRGRANT EDC16108,FLOOD,Flood Dec 2015,09318,Flood Dec 2015
http://statistics.data.gov.uk/id/local-authority/16UF,Eden District Council,25/11/2016,153858,547.84,UNITED UTILITIES WATER LTD,UNI008,Technical Services Manager,Water charges � metered,1032,PCS KIRKBY STEPHEN AUG-OCT 2016,PUBCON,Public Conveniences,02283,Kirkby Stephen Stoneshot Public Conv
http://statistics.data.gov.uk/id/local-authority/16UF,Eden District Council,23/11/2016,153955,6890,ENTERPRISE PROSPECTS LTD,ENT004,Chief Executive's,Agency Staff,0003,ROBIN HOOPER NOVEMBER 2016,CHIEXE,Chief Executive,00050,Chief Executive
http://statistics.data.gov.uk/id/local-authority/16UF,Eden District Council,23/11/2016,160450,29768.75,PWLB,PWL001,Financial Services Manager,Loan Repaid BS,6101,PWLB 07.11.16,PWLBL,PWLB Loans,10356,PWLB Loan >12 Months
http://statistics.data.gov.uk/id/local-authority/16UF,Eden District Council,25/11/2016,161061,12700,LGPS,LGP001,Financial Services Manager,Additional Pensions,0030,Additional Employers Superannuation Cont,CORPOR,Corporate Costs,01179,Additional Employers Superannuation Cont
